[Event "24th Hoogeschool Zeeland 2022"]
[Site "Vlissingen"]
[Date "2022.08.08"]
[Round "4.2"]
[White "Dhulipalla Bala Chandra Prasad"]
[Black "Van den Doel, Erik"]
[Result "0-1"]
[ECO "D11"]
[WhiteElo "2423"]
[BlackElo "2589"]
[Annotator "TA"]
[PlyCount "106"]
[EventDate "2022.08.05"]
[EventType "swiss"]
[EventCountry "NED"]
[SourceTitle "playchess.com"]
[Source "ChessBase"]
[SourceQuality "1"]
[TimeControl "40/5400+30:1800+30"]

{[%evp 9,106,8,17,0,4,9,46,41,48,45,83,74,73,78,95,72,63,12,21,23,25,22,24,29,12,23,29,35,60,18,68,68,71,72,106,54,59,59,56,42,129,82,101,0,56,5,8,0,14,0,0,0,47,54,66,77,78,78,128,81,81,88,106,8,8,8,9,-145,-122,-151,-142,-136,-136,-136,-143,-141,-135,-179,-46,-42,-34,-62,-61,-94,-101,-114,-109,-285,-285,-29947,-29951,-29951,-29951,-6275,-4990,-29955,-1190,-1029,-849]} 1. d4 {[%emt 0:00:04]} d5 {[%emt 0:00:06]} 2. c4 {[%emt 0:00:06]} c6 {[%emt 0:00:04]} 3. Nf3 {[%emt 0:00:05]} Nf6 {[%emt 0:00:03]} 4. g3 {[%emt 0:00:04]} Bf5 {[%emt 0:03:17]} 5. Nc3 {[%emt 0:00:08]} e6 {[%emt 0:00:11]} 6. Qb3 {[%emt 0:00:04] D11: Slav Defence: 3 Nf3 sidelines and 3...Nf6 4 e3 Bg4.} Qb6 {[%emt 0:17:25]} 7. c5 {[%emt 0:01:48]} Qc7 {[%emt 0:01:16]} 8. Bf4 {[%emt 0:00:53] White is slightly better.} Qc8 {[%emt 0:00:07]} 9. Nh4 {[%emt 1:31:48]} Be4 $5 {[%emt 0:11:18][%mdl 4] Leaves trodden paths.} 10. f3 {[%emt 0:00:00]} Bg6 {[%emt 0:00:05]} 11. e4 {[%emt 0:00:00]} Be7 {[%emt 0:17:10]} 12. Nxg6 {[%emt 0:00:00]} (12. Bd6 {looks sharper.} Nbd7 13. Bxe7 Kxe7 14. e5) 12... hxg6 {[%emt 0:00:08]} 13. Bg2 {[%emt 0:00:00]} (13. Bd6 $14) 13... Nbd7 $11 {[%emt 0:08:23] [#]} 14. exd5 $146 {[%emt 0:00:00]} ({Predecessor:} 14. e5 Ng8 15. Be3 b6 16. cxb6 Rb8 17. Qc2 Nxb6 18. b3 Ba3 19. O-O Ne7 20. Bc1 {½-½ (53) Danchevski,O (2356)-Ortega,L (2478) Skopje 2015}) 14... exd5 {[%emt 0:00:44]} 15. O-O {[%emt 0:00:00]} Nf8 {[%emt 0:11:16]} 16. Rfe1 {[%emt 0:00:00]} Ne6 {[%emt 0:02:06]} 17. Be3 {[%emt 0:00:00]} Qc7 {[%emt 0:04:48]} 18. Qc2 {[%emt 0:00:00]} a5 {[%emt 0:04:54]} 19. Re2 {[%emt 0:00:00]} b6 {[%emt 0:01:21]} (19... Kf8 $11) 20. cxb6 $14 {[%emt 0:00:00]} Qxb6 {[%emt 0:00:05]} 21. Na4 {[%emt 0:00:00]} Qb5 {[%emt 0:01:43]} 22. a3 {[%emt 0:00:00]} (22. Bf1 $16) 22... g5 {[%emt 0:04:08]} 23. Bf2 {[%emt 0:00:00]} Kf8 {[%emt 0:01:54]} 24. Rae1 {[%emt 0:00:00]} Re8 {[%emt 0:04:15]} (24... Rb8 $14) 25. Bf1 {[%emt 0:00:00]} (25. Rxe6 $142 fxe6 26. Rxe6) 25... Qb7 $16 {[%emt 0:00:06]} 26. Bg2 {[%emt 0:00:00]} (26. Rxe6 $16 fxe6 27. Rxe6) 26... Bd6 {[%emt 0:01:23]} (26... Qb5 $11) 27. Nc5 {[%emt 0:01:57]} (27. Re3 $14) 27... Bxc5 $11 {[%emt 0:00:52]} 28. dxc5 {[%emt 0:00:03]} Rb8 {[%emt 0:01:22]} 29. Qc3 {[%emt 0:02:28]} a4 {[%emt 0:00:40]} 30. Bd4 {[%emt 0:00:11]} Nxd4 {[%emt 0:00:42]} (30... Rh6 $11) 31. Qxd4 $14 {[%emt 0:00:02]} Qb3 {[%emt 0:00:49]} 32. Qe5 {[%emt 0:00:25]} Kg8 {[%emt 0:00:44]} 33. Qxg5 {[%emt 0:00:59]} d4 {[%emt 0:01:30]} (33... Rh6 $142) 34. Qd2 {[%emt 0:01:03]} (34. Qf4 $142) 34... d3 $16 {[%emt 0:00:14]} 35. Re3 {[%emt 0:00:30]} Qxb2 {[%emt 0:00:29]} 36. Qxd3 {[%emt 0:01:45]} (36. Rxd3 $16 {aiming for f4.} Rh5 37. Rc1 (37. Rd8+ Kh7 $16)) 36... Rh5 $11 {[%emt 0:01:06][%cal Bh8h5,Bh5d5,Bd5d2][%mdl 32]} 37. Qc4 {[%emt 0:01:31]} Rd5 {[%emt 0:00:58]} 38. f4 $2 {[%emt 0:01:52]} ({White should try} 38. Qxa4 $11 Rxc5 39. R3e2) 38... Rd2 $17 {[%emt 0:00:53] Black is more active.} 39. Bxc6 {[%emt 0:00:03]} Rxh2 {[%emt 0:00:18][%csl Gh2][%cal Rb2f2]} 40. R1e2 {[%emt 0:01:12] Prevents Qf2+.} Rxe2 $40 {[%emt 0:01:03][%mdl 192] Deflection. Black has strong attack. Dancing on a razor blade.} 41. Rxe2 {[%emt 0:30:33]} (41. Qxe2 $2 {too greedy.} Qa1+ 42. Kf2 Rb2 $19) 41... Qxa3 {[%emt 0:05:44]} 42. Kh2 {[%emt 0:00:00]} Rb3 {[%emt 0:16:10]} 43. Rg2 {[%emt 0:00:00]} Rc3 {[%emt 0:05:51]} (43... Ng4+ $19 44. Kh3 Ne3) 44. Qxa4 $15 {[%emt 0:00:00]} Qxc5 {[%emt 0:00:29]} 45. Bf3 {[%emt 0:00:00][%cal Og2e2] Against Ng4+} Qe3 {[%emt 0:01:03]} 46. Be2 {[%emt 0:00:05] [#]} g6 $1 {[%emt 0:02:19] Threatens to win with ...Kg7.} 47. Qa5 {[%emt 0:00:45]} Rc5 {[%emt 0:00:17] Against Qe5} 48. Qa8+ {[%emt 0:00:29] Loses the game.} (48. Qa1 $17 Kg7 49. Qg1) 48... Kg7 $19 {[%emt 0:00:30]} 49. Qa1 $2 {[%emt 0:00:25] [#]} (49. Qb8 $19) 49... Rc8 $1 {[%emt 0:00:28]} 50. Bg4 {[%emt 0:01:47]} Rh8+ {[%emt 0:00:06]} 51. Bh3 {[%emt 0:00:04]} Qf3 {[%emt 0:02:28][%cal Oh8h3] ( -> ...Rxh3+!)} 52. Qe5 {[%emt 0:02:21]} Rh5 {[%emt 0:00:05]} (52... Qg4 $142 53. Kg1 Rxh3 54. Qe2 Qf5 55. Rh2 Rxg3+ 56. Rg2 Rh3 57. Rh2 Qc5+ 58. Kg2 Rc3 59. f5 Rc2 60. Qxc2 Qxc2+ 61. Kh1 Qd1+ 62. Kg2 gxf5 63. Kg3 Qd3+ 64. Kh4 Ne4 65. Rg2+ Kf8 66. Rg1 Qe3 67. Rg6 Ke7 68. Rc6 Qg5+ 69. Kh3 Qg3#) 53. Qe2 {[%emt 0:00:04]} Ng4+ {[%emt 0:00:04] Weighted Error Value: White=0.52/Black=0.27 (precise)} 0-1

[Event "24th Hoogeschool Zeeland 2022"]
[Site "Vlissingen"]
[Date "2022.08.08"]
[Round "4.3"]
[White "Royal, Shreyas"]
[Black "Harsha Bharathakoti"]
[Result "1-0"]
[ECO "D30"]
[WhiteElo "2353"]
[BlackElo "2547"]
[Annotator "TA"]
[PlyCount "49"]
[EventDate "2022.08.05"]
[EventType "swiss"]
[EventCountry "NED"]
[SourceTitle "playchess.com"]
[Source "ChessBase"]
[SourceQuality "1"]
[TimeControl "40/5400+30:1800+30"]

{[%evp 9,49,21,29,18,21,17,17,22,12,0,2,14,47,58,35,42,39,58,89,91,91,94,82,92,112,117,179,167,279,253,281,267,275,234,444,311,508,516,707,679,643,642]} 1. d4 {[%emt 0:00:03]} d5 {[%emt 0:00:16]} 2. c4 {[%emt 0:00:07]} e6 {[%emt 0:00:03]} 3. Nf3 {[%emt 0:00:07]} a6 {[%emt 0:00:02]} 4. g3 {[%emt 0:00:10]} dxc4 {[%emt 0:00:05]} 5. Bg2 {[%emt 0:00:14]} Nc6 {[%emt 0:00:04]} 6. e3 {[%emt 0:00:14] [#] D30: Queen's Gambit Declined: Systems without Nc3.} e5 $146 {[%emt 0:00:08]} ({Predecessor:} 6... b5 7. Ne5 Nxe5 8. Bxa8 Nd3+ 9. Kf1 Nf6 10. Bf3 e5 11. dxe5 Bh3+ 12. Bg2 Qa8 {0-1 (27) Royal,S (2385)-Jackson,J (2400) Kenilworth 2022}) 7. O-O {[%emt 0:00:22]} exd4 {[%emt 0:00:03]} 8. exd4 {[%emt 0:00:05] The position is equal.} Nf6 {[%emt 0:00:28]} 9. Nc3 {[%emt 0:00:50]} Be7 {[%emt 0:00:04]} 10. Ne5 {[%emt 0:01:59]} O-O {[%emt 0:44:05]} (10... Nxd4 $5 {[%cal Re8g8]} 11. Qa4+ (11. Be3 c5 $11) 11... c6 $11) 11. Bxc6 {[%emt 0:00:38]} bxc6 {[%emt 0:00:04]} 12. Nxc6 {[%emt 0:00:07] Pair of Knights!} Qd6 {[%emt 0:15:21]} 13. d5 {[%emt 0:00:15]} Bb7 {[%emt 0:03:47]} 14. Bf4 {[%emt 0:16:20] White is more active.} Qd7 {[%emt 0:00:03]} 15. Nxe7+ {[%emt 0:00:14]} Qxe7 {[%emt 0:00:02] [#]} 16. Qd4 {[%emt 0:00:07] Against Qc5} Qd7 {[%emt 0:25:20][%cal Rf6d5]} 17. Rad1 {[%emt 0:19:06]} (17. Qxc4 $6 Nxd5 18. Rfd1 Rad8 $11) 17... c6 {[%emt 0:00:07] [#]} (17... Rfe8 $16) 18. Be5 $1 $36 {[%emt 0:05:27][%mdl 2048] White is in control.} (18. Qxc4 cxd5 19. Qd4 Nh5 $14) 18... Ng4 {[%emt 0:02:06]} (18... Nxd5 $142 19. Bxg7 Rfe8) 19. Bxg7 {[%emt 0:02:49]} c5 {[%emt 0:00:31] [#]} 20. Qf4 {[%emt 0:00:09] Hoping for Qg5.} Kxg7 {[%emt 0:00:03]} 21. h3 {[%emt 0:00:05]} h5 {[%emt 0:02:26]} (21... Bc8 {is a better defense.} 22. f3 (22. hxg4 Qxg4 23. Qe5+ f6 $18) (22. Qg5+ Kh8 $18) 22... Nh2) 22. Ne4 {[%emt 0:04:39]} (22. hxg4 Qxg4 23. Qe3 h4 $16) 22... Rfe8 $2 {[%emt 0:04:37]} (22... Qe7 23. hxg4 Rad8) 23. hxg4 {[%emt 0:01:42] White is clearly winning.} Qxg4 {[%emt 0:00:06]} 24. Qf6+ {[%emt 0:01:39]} Kg8 {[%emt 0:00:21]} 25. Nd6 {[%emt 0:00:26] Weighted Error Value: White=0.10 (very precise) /Black=0.47} 1-0

[Event "24th Hoogeschool Zeeland 2022"]
[Site "Vlissingen"]
[Date "2022.08.08"]
[Round "4.4"]
[White "Lalith Babu M R"]
[Black "Pham, Khoi"]
[Result "1-0"]
[ECO "D02"]
[WhiteElo "2549"]
[BlackElo "2317"]
[Annotator "TA"]
[PlyCount "67"]
[EventDate "2022.08.05"]
[EventType "swiss"]
[EventCountry "NED"]
[SourceTitle "playchess.com"]
[Source "ChessBase"]
[SourceQuality "1"]
[TimeControl "40/5400+30:1800+30"]

{[%evp 9,67,0,0,1,12,-18,0,0,0,0,0,-22,4,0,51,35,55,48,43,47,60,37,43,50,39,39,117,133,125,124,152,156,148,164,154,154,221,100,97,97,101,102,119,71,71,54,152,142,122,128,123,123,272,267,307,302,742,414,1023,990]} 1. Nf3 {[%emt 0:00:03]} d5 {[%emt 0:00:12]} 2. d4 {[%emt 0:00:04]} Nf6 {[%emt 0:00:05]} 3. Bf4 {[%emt 0:00:04]} c5 {[%emt 0:00:48]} 4. e3 {[%emt 0:00:05]} Nc6 {[%emt 0:00:26]} 5. Nbd2 {[%emt 0:00:57]} Qb6 {[%emt 0:01:14][%csl LRb2,LRd4][%cal Rc5d4]} 6. dxc5 {[%emt 0:04:42] D02: 1 d4 d5 2 Nf3 sidelines, including 2...Nf6 3 g3 and 2...Nf6 3 Bf4.} Qxb2 {[%emt 1:30:45]} 7. Be2 {[%emt 0:02:57]} g6 {[%emt 0:00:00]} 8. O-O {[%emt 0:06:13] The position is equal.} Bg7 {[%emt 0:00:00] [#]} 9. Rb1 $146 {[%emt 0:21:06]} ({Predecessor:} 9. c4 O-O 10. cxd5 Nxd5 11. Rb1 Nc3 12. Rxb2 Nxd1 13. Rc2 Nc3 14. Bc4 Bf5 15. Rcc1 {0-1 (26) Pressman,L (2307)-Le Goff,D (2342) Chess.com INT 2021}) 9... Qc3 {[%emt 0:00:00]} 10. Nd4 {[%emt 0:14:02][%cal Bf3d4,Bd4b5,Bb5c3][%mdl 32]} O-O {[%emt 0:00:00]} 11. Nb5 {[%emt 0:13:58]} Qa5 {[%emt 0:00:00]} ({Black should play} 11... Qxc5 $11 12. Nb3 Qb4) 12. Bc7 $1 $14 {[%emt 0:02:42]} Qa4 {[%emt 0:00:00]} (12... Qxa2 $2 13. Nc3 Qxb1 14. Ndxb1 $18) 13. Nc3 {[%emt 0:00:23]} Qh4 {[%emt 0:00:00]} 14. Nf3 $36 {[%emt 0:00:32][%csl LRd5,LRh4][%mdl 2048] White has some pressure.} Qh5 {[%emt 0:00:00]} 15. Nd4 {[%emt 0:01:00]} Qh6 {[%emt 0:00:00]} 16. Bf4 {[%emt 0:02:11]} g5 {[%emt 0:00:00]} 17. Bg3 {[%emt 0:00:03]} e5 {[%emt 0:00:00]} ({Better is} 17... Rd8 $14) 18. Nxc6 $16 {[%emt 0:08:20] White is more active.} bxc6 {[%emt 0:00:00]} 19. Bxe5 {[%emt 0:00:04]} Ng4 {[%emt 0:00:00]} 20. Bd6 {[%emt 0:00:04] Strongly threatening Nxd5.} Nxh2 {[%emt 0:00:00]} 21. Nxd5 $1 {[%emt 0:00:45]} ({But not} 21. Bxh2 $6 Bxc3 22. Rb3 Qf6 $14) ({Don't play} 21. Bxf8 $6 Nxf1 22. Bd6 Bxc3 $14) 21... Nxf1 {[%emt 0:00:00]} 22. Bxf1 {[%emt 0:01:10]} Be6 {[%emt 0:00:00] [#]} (22... Bd7 $16) 23. Bxf8 {[%emt 0:00:28]} (23. Ne7+ $1 $18 {and the rest is easy.} Kh8 24. Nxc6) 23... Bxf8 {[%emt 0:00:00]} 24. Nc7 {[%emt 0:00:24]} Rc8 {[%emt 0:00:00]} 25. Nxe6 {[%emt 0:00:33]} Qxe6 {[%emt 0:00:00]} 26. Rb7 {[%emt 0:00:03]} (26. Qd4 $142) 26... Bxc5 {[%emt 0:00:00]} 27. Qh5 {[%emt 0:01:29]} Qg6 {[%emt 0:00:00] [#]} (27... h6 $14) 28. Qg4 $1 {[%emt 0:00:32]} Rd8 {[%emt 0:00:00]} 29. Bd3 {[%emt 0:02:16]} Qf6 {[%emt 0:00:00]} 30. Qe4 {[%emt 0:00:09]} Qg7 {[%emt 0:07:08] A mistake that costs the game.} (30... h5 $16 {was called for.} 31. Qh7+ Kf8 32. Qxh5 Re8) 31. g3 $18 {[%emt 0:00:26]} h5 {[%emt 0:02:50]} 32. Qxc6 {[%emt 0:00:37]} Qe5 {[%emt 0:00:21]} (32... Bb6 33. Bc4 Rf8) 33. Qf3 {[%emt 0:00:43][%csl LRf7,LRh5]} Qd5 {[%emt 0:00:43] [#]} (33... Qg7 $142 34. Bc4 Rf8 35. Qxh5 Qf6 36. Bxf7+ Rxf7 37. Rxf7 Qxf7 38. Qxg5+ Qg7 39. Qxc5 Qa1+ 40. Kg2 Qxa2) 34. Qxh5 $1 {[%emt 0:00:07] Weighted Error Value: White=0.23 (precise) /Black=0.28 (precise)} 1-0

[Event "24th Hoogeschool Zeeland 2022"]
[Site "Vlissingen"]
[Date "2022.08.08"]
[Round "4.5"]
[White "Sorbe, Stephane"]
[Black "Beerdsen, Thomas"]
[Result "1/2-1/2"]
[ECO "A46"]
[WhiteElo "2352"]
[BlackElo "2500"]
[Annotator "TA"]
[PlyCount "160"]
[EventDate "2022.08.05"]
[EventType "swiss"]
[EventCountry "NED"]
[SourceTitle "playchess.com"]
[Source "ChessBase"]
[SourceQuality "1"]
[TimeControl "40/5400+30:1800+30"]

{[%evp 10,160,2,-18,0,-26,-21,-7,0,0,0,-5,0,0,0,0,0,0,0,0,0,0,0,0,0,0,0,0,26,0,0,-25,0,0,37,0,37,30,31,27,88,90,97,71,70,0,0,0,0,0,0,0,0,0,8,13,52,-318,-332,-304,-322,-335,-335,-327,-327,-289,-271,-262,-246,-364,-350,-350,-350,-335,-335,-418,-371,-364,-274,-274,-274,-274,-274,-274,-274,-274,-274,-274,-274,-274,-274,-274,-274,-274,-274,-274,-274,-274,-274,-274,-274,-274,-151,-274,-274,-274,-274,-274,-274,-274,-274,-274,-274,-274,-274,-274,-274,-274,-274,-274,-274,-274,-274,-274,-274,-274,-274,-274,0,-274,-274,-274,-274,-274,-212,-274,-274,-274,-212,-274,-274,-274,-274,-274,-274,-274,-274,-274,0,-274,0,-274,0]} 1. d4 {[%emt 0:00:05]} Nf6 {[%emt 0:00:10]} 2. Nf3 {[%emt 0:00:07]} e6 {[%emt 0:00:18]} 3. Bg5 {[%emt 0:00:12]} h6 {[%emt 0:01:13]} 4. Bh4 {[%emt 0:00:10]} c5 {[%emt 0:00:24]} 5. e3 {[%emt 0:00:14]} cxd4 {[%emt 0:02:24]} 6. exd4 {[%emt 0:01:19]} Qb6 {[%emt 0:00:41] A46: 1 d4 Nf6 2 Nf3 e6: Torre, London and Colle Systems.} 7. Bxf6 {[%emt 0:03:32]} gxf6 {[%emt 0:04:10]} 8. Nbd2 {[%emt 0:00:07]} d5 {[%emt 0:20:48] Inhibits Nc4. The position is equal.} 9. Bd3 {[%emt 0:08:09]} Nc6 {[%emt 0:01:11]} 10. O-O {[%emt 0:01:05]} Bd7 {[%emt 0:07:18]} 11. c4 {[%emt 0:02:52] [#]} O-O-O $146 {[%emt 0:01:43]} (11... Qxb2 12. cxd5 exd5 13. Rb1 $16) ({Predecessor:} 11... Nxd4 12. cxd5 e5 13. Re1 Be7 14. Re4 Nb5 15. Nc4 Qc5 16. Ne3 Nd6 17. Rc1 Nxe4 18. Rxc5 Nxc5 {1-0 (27) Mednikov,G-Rahimov,A Armavir 1995}) 12. cxd5 {[%emt 0:18:52]} exd5 {[%emt 0:01:47]} 13. Nb3 {[%emt 0:00:13]} Kb8 {[%emt 0:01:46]} 14. Rc1 {[%emt 0:02:46]} Bd6 {[%emt 0:04:25]} 15. Re1 {[%emt 0:03:20]} Rhg8 {[%emt 0:03:17]} 16. a3 {[%emt 0:01:53]} Ka8 {[%emt 0:03:38]} 17. Rc3 {[%emt 0:01:42]} Bg4 $1 {[%emt 0:05:25]} 18. Bf1 {[%emt 0:03:08]} Qc7 {[%emt 0:02:31][%cal Od6h2]} 19. g3 {[%emt 0:02:03]} f5 $1 {[%emt 0:36:51][%cal Bf6f5,Bf5f4][%mdl 32]} 20. Qd2 {[%emt 0:04:28]} f4 {[%emt 0:00:00][%cal Rf4g3]} (20... Bxf3 $5 21. Rxf3 f4 $11) 21. Bg2 {[%emt 0:15:59][%cal Of3e5]} Qb6 {[%emt 0:00:00]} 22. Nh4 {[%emt 0:06:43]} (22. Nc5 $5 {[%cal Rc3b3]}) 22... Be6 {[%emt 0:00:00]} 23. Nc5 {[%emt 0:01:52]} fxg3 {[%emt 0:00:00]} 24. hxg3 {[%emt 0:00:52]} ({Much worse is} 24. fxg3 Rg4 25. Nxe6 fxe6 $15) 24... Rg4 {[%emt 0:00:00]} (24... Bc8 $11) 25. Nxe6 $16 {[%emt 0:07:58] White is more active.} fxe6 {[%emt 0:00:00]} 26. Rxe6 {[%emt 0:00:16] Nf5 is the strong threat.} Rxd4 {[%emt 0:00:00]} 27. Qe2 {[%emt 0:01:51]} (27. Qc2 $14 Bxg3 28. Nf5 Bxf2+ 29. Qxf2 Rd1+ 30. Bf1) 27... Rxh4 $11 {[%emt 0:00:00]} 28. Rxd6 {[%emt 0:01:06]} (28. gxh4 $2 {loses.} Nd4 29. Qe3 Nxe6 30. Qxb6 axb6 $19) 28... Rxd6 {[%emt 0:00:00]} 29. gxh4 {[%emt 0:00:13]} a6 {[%emt 0:00:00]} 30. Rg3 {[%emt 0:00:54]} Ka7 {[%emt 0:00:34]} 31. b4 {[%emt 0:00:36]} Nd4 {[%emt 0:00:27]} 32. Qd3 {[%emt 0:02:00]} Rc6 {[%emt 0:01:10][%cal Oc6c3] And now ...Rc3! would win.} 33. Bxd5 $2 {[%emt 0:03:03][%mdl 8192] [#]} (33. Rg4 $1 $14 {keeps the upper hand.} Rc1+ 34. Bf1) 33... Rc3 $3 $19 {[%emt 0:00:37][%mdl 576] Deflection, Decoy} 34. Qxc3 {[%emt 0:01:50] aiming for Qd3.} Ne2+ {[%emt 0:00:04]} 35. Kg2 {[%emt 0:01:58]} Nxc3 {[%emt 0:00:11]} 36. Rxc3 {[%emt 0:00:02][%mdl 4096] Endgame KQ-KRB} Qd4 {[%emt 0:00:54][%csl LRc3,LRd5,LRh4]} 37. Rc5 {[%emt 0:00:06]} Qxh4 {[%emt 0:03:56]} 38. Bf3 {[%emt 0:01:26] [#]} Qe7 {[%emt 0:00:13] Against Rc7} 39. Rd5 {[%emt 0:01:48] [#]} (39. Rf5 $142) 39... Qg7+ $1 {[%emt 0:00:11]} 40. Kh2 {[%emt 0:01:22]} Qc3 {[%emt 0:00:10][%csl LRa3,LRf3] Inhibits Rd3.} 41. Kg2 {[%emt 0:31:12]} Qxa3 {[%emt 0:06:44]} 42. b5 {[%emt 0:00:00]} Qe7 {[%emt 0:02:05]} 43. bxa6 {[%emt 0:00:00]} Kxa6 {[%emt 0:05:07]} 44. Kf1 {[%emt 0:00:00]} Qe6 {[%emt 0:03:01]} 45. Be2+ {[%emt 0:00:00]} Ka7 {[%emt 0:00:28]} 46. Rh5 {[%emt 0:00:00]} Qc6 {[%emt 0:01:12]} 47. f4 {[%emt 0:00:00]} Qc1+ {[%emt 0:00:24]} 48. Kf2 {[%emt 0:00:00]} Qxf4+ {[%emt 0:00:05]} 49. Ke1 {[%emt 0:00:00]} Kb6 {[%emt 0:00:47]} 50. Rb5+ {[%emt 0:00:00]} Kc6 {[%emt 0:00:48]} 51. Rh5 {[%emt 0:00:00]} Qe3 {[%emt 0:01:40]} 52. Kf1 {[%emt 0:00:00]} b6 {[%emt 0:00:49]} 53. Ke1 {[%emt 0:00:00]} Kd6 {[%emt 0:00:20]} 54. Kd1 {[%emt 0:00:00]} Qg1+ {[%emt 0:00:47]} 55. Kd2 {[%emt 0:00:00]} Kc6 {[%emt 0:01:56]} (55... Qg7 $19 56. Ke3 Qg3+ 57. Kd2 Qf4+ 58. Kd3 Kc6) 56. Bb5+ {[%emt 0:00:00]} (56. Rxh6+ $17 {only move.} Kc5 57. Rh5+ Kb4 58. Rb5+ Ka4 59. Rb2) 56... Kc7 {[%emt 0:00:29]} 57. Be2 {[%emt 0:00:00]} Qa1 {[%emt 0:01:59]} 58. Rb5 {[%emt 0:00:00]} Kc6 {[%emt 0:00:50]} 59. Rh5 {[%emt 0:00:00]} Qg7 {[%emt 0:00:45]} 60. Bb5+ {[%emt 0:00:00]} Kd6 {[%emt 0:00:29]} 61. Be2 {[%emt 0:00:00]} Ke6 {[%emt 0:00:12]} 62. Ke1 {[%emt 0:00:00]} Kf6 {[%emt 0:00:15]} 63. Kf2 {[%emt 0:00:00]} Kg6 {[%emt 0:00:35]} 64. Rb5 {[%emt 0:00:00]} Qd4+ {[%emt 0:00:17]} 65. Ke1 {[%emt 0:00:00]} Qe3 {[%emt 0:00:09]} 66. Kd1 {[%emt 0:00:00]} Qc3 {[%emt 0:03:42]} 67. Bh5+ {[%emt 0:00:00]} Kf6 {[%emt 0:00:32]} 68. Be2 {[%emt 0:00:00] Against Qd3+} Kg6 {[%emt 0:00:32]} 69. Bh5+ $1 {[%emt 0:00:00]} Kg7 {[%emt 0:00:05] ( -> ...Qd3+)} 70. Be2 {[%emt 0:00:00] Against Qd3+} Kf6 {[%emt 0:00:05]} 71. Rh5 {[%emt 0:00:00]} Ke6 {[%emt 0:00:56]} 72. Rb5 {[%emt 0:00:00]} Kd7 {[%emt 0:00:49]} 73. Rh5 {[%emt 0:00:00]} Kd6 {[%emt 0:00:16]} 74. Rb5 {[%emt 0:00:00]} Kc6 {[%emt 0:00:25] Hoping for ...Qa1+.} 75. Rh5 {[%emt 0:00:00]} Kb7 {[%emt 0:09:58]} 76. Rb5 {[%emt 0:00:00]} Qa1+ {[%emt 0:00:00]} 77. Kd2 {[%emt 0:00:00]} Qa2+ {[%emt 0:00:00]} 78. Ke1 {[%emt 0:00:00]} Qa1+ {[%emt 0:00:00]} 79. Kd2 {[%emt 0:00:00]} Qa2+ {[%emt 0:00:00]} 80. Ke1 $1 {[%emt 0:00:00]} Qa5+ $2 {[%emt 0:00:00] Weighted Error Value: White=0.17 (very precise) /Black=0.08 (flawless)} 1/2-1/2